bitfinex/quotes_ETHUSD_20250815
["timestamp","ask_amount","ask_price","bid_price","bid_amount"]
[1755292184071,34.42306975,4418.7,4418.6,0.4394]
[1755292184422,34.42306975,4418.7,4418.6,0.001]
[1755292185645,4.42306975,4418.7,4418.6,0.001]
[1755292188735,3.60083919,4418.7,4418.6,0.001]
[1755292189559,6.55870308,4418.7,4418.6,0.001]
[1755292189862,7.1690429,4418.7,4418.6,0.001]
[1755292191280,6.55870308,4418.7,4418.6,0.001]
[1755292191963,36.55870308,4418.7,4418.6,0.001]
[1755292192139,37.37261391,4418.7,4418.6,0.001]
[1755292192463,36.55870308,4418.7,4418.6,0.001]
[1755292192972,0.55,4417.9,4415.2,0.4384]
[1755292193161,4.359,4417.2,4415.5,2.26474644]
[1755292193361,1.2210786,4416.6,4415.2,0.4384]
[1755292193675,3.0,4416.4,4415.4,2.26475383]
[1755292193872,3.1136,4416.2,4415.4,2.26475383]
[1755292194039,34.02542608,4416.2,4415.4,2.26475383]
[1755292194244,36.13016219,4416.2,4415.4,2.26475383]
[1755292194444,36.13016219,4416.2,4415.5,2.26474361]
[1755292194742,36.13016219,4416.2,4415.4,2.26479441]
[1755292195165,36.94230586,4416.2,4415.4,2.26479441]
[1755292195343,36.94230586,4416.2,4415.4,2.26479089]
[1755292195539,36.94230586,4416.2,4415.2,0.4384]
[1755292195540,36.13016219,4416.2,4415.2,0.4384]
[1755292195878,36.55936219,4416.2,4415.2,0.4384]
[1755292196053,36.55936219,4416.2,4415.2,2.70325562]
[1755292196254,37.58210402,4416.2,4415.3,2.26484054]
[1755292196451,37.58210402,4416.2,4415.2,0.4384]
[1755292196452,37.58210402,4416.2,4415.2,2.70329457]
[1755292196656,36.28268457,4416.2,4415.2,0.4384]
[1755292197248,36.28204611,4416.2,4415.3,2.26485048]
[1755292197649,36.76850359,4416.2,4415.3,2.26485048]
[1755292198175,36.76850359,4416.2,4415.2,2.70329307]
[1755292198378,36.76850359,4416.2,4415.2,0.4384]
[1755292198574,36.76850359,4416.2,4415.2,2.70325847]
[1755292199068,36.76850359,4416.2,4415.3,2.26484054]
[1755292199267,36.76850359,4416.2,4415.2,2.70329213]
[1755292199575,34.62989755,4416.2,4415.6,0.4384]
[1755292200052,36.94659755,4416.2,4415.6,0.4384]
[1755292200481,34.51629755,4416.2,4415.1,0.02]
[1755292200782,3.81124202,4416.2,4416.1,0.4584]
[1755292200943,3.53552233,4416.2,4416.1,0.02]
[1755292201349,3.32478454,4416.2,4416.1,0.02]
[1755292202146,3.1136,4416.2,4416.1,0.4584]
[1755292203475,3.1136,4416.2,4416.1,0.02]
[1755292203676,3.1136,4416.2,4416.1,0.4584]
[1755292204696,3.1136,4416.2,4416.1,0.02]
[1755292205072,0.1136,4416.2,4416.1,2.72284147]
[1755292205271,0.1136,4416.2,4416.1,0.4584]
[1755292205590,0.1136,4416.2,4416.1,2.72284147]
[1755292205889,0.1136,4416.2,4416.1,3.22157886]
[1755292207284,0.1136,4416.2,4416.1,2.72284147]
[1755292207996,0.81076246,4417.8,4416.1,2.72284147]
[1755292207997,0.1128,4417.3,4416.2,0.55]
[1755292208173,0.60729396,4418.5,4416.8,0.55]
[1755292208370,0.60729396,4418.5,4416.7,7.6286426]
[1755292208371,30.0,4418.4,4417.8,2.26352485]
[1755292208596,0.69585541,4418.3,4417.7,2.70761871]
[1755292208773,3.0,4418.2,4417.7,0.444]
[1755292209098,30.0,4418.1,4417.8,0.444]
[1755292209298,32.3659,4418.1,4417.6,2.26366187]
[1755292209498,30.4853262,4418.0,4417.5,2.26371354]
[1755292209800,0.1128,4417.6,4417.5,2.26371354]
[1755292210300,0.1128,4417.6,4417.4,2.26377324]
[1755292210488,0.1128,4417.6,4417.3,2.2637897]
[1755292210688,0.1128,4417.6,4417.0,4.007]
[1755292210998,0.1128,4417.6,4417.3,2.26382418]
[1755292211306,30.0,4417.3,4416.7,0.1136]
[1755292211468,2.3659,4417.5,4416.6,2.26415799]
[1755292211469,30.0,4417.4,4416.6,2.26415799]
[1755292211667,3.0,4418.0,4416.1,0.02]
[1755292211668,30.0,4416.6,4416.1,0.02]
[1755292211906,0.60729396,4417.7,4416.9,2.26400541]
[1755292212071,0.60729396,4417.7,4416.2,0.5576]
[1755292212072,0.1128,4417.0,4416.6,2.26414474]
[1755292212272,0.1136,4416.5,4416.4,2.26428765]
[1755292212812,0.1136,4416.5,4416.3,2.26429718]
[1755292212983,0.1136,4416.5,4416.2,2.26438408]
[1755292213301,0.21066188,4416.9,4416.3,2.26433214]
[1755292213608,0.1136,4416.2,4416.1,2.28439605]
[1755292213983,0.1136,4416.2,4416.1,2.72839605]
[1755292218082,0.1136,4416.2,4416.1,2.72939605]
[1755292218285,0.48580615,4417.1,4416.7,2.26408914]
[1755292218584,2.3659,4417.5,4416.7,2.26408914]
[1755292218585,30.48580615,4417.0,4416.7,2.26412069]
[1755292218828,0.1136,4416.8,4416.7,2.26412069]
[1755292219126,0.59940615,4416.8,4416.7,2.26412069]
[1755292219429,0.59940615,4416.8,4416.5,5.8262359]
[1755292219430,0.1136,4416.8,4416.5,3.562]
[1755292219734,0.1136,4416.8,4416.7,2.26413385]
[1755292220413,0.59940615,4416.8,4416.6,2.26417338]
[1755292220635,0.48580615,4416.7,4416.6,2.26417338]
[1755292220784,2.85170615,4416.7,4416.3,3.562]
[1755292220989,2.3659,4416.6,4416.3,3.562]
[1755292221229,0.1136,4416.4,4416.3,5.82633892]
[1755292221581,0.1136,4416.4,4416.3,6.88976197]
[1755292221785,0.48580615,4417.1,4416.8,2.26403538]
[1755292222013,30.48580615,4417.0,4416.8,2.70803538]
[1755292222219,30.59940615,4416.9,4416.7,3.561]
[1755292222529,0.48580615,4416.8,4416.7,5.82513385]
[1755292222961,0.48580615,4416.8,4416.7,6.26913385]
[1755292223322,0.48580615,4416.8,4416.7,7.67247059]
[1755292223522,0.48580615,4417.1,4417.0,2.26398007]
[1755292225346,0.48580615,4417.1,4417.0,6.26898007]
[1755292226216,0.48580615,4417.1,4417.0,5.82498007]
[1755292226625,0.48580615,4417.1,4417.0,6.26898007]
[1755292226811,0.48580615,4417.1,4417.0,5.82498007]
[1755292227453,0.48580615,4417.1,4417.0,6.26898007]
[1755292227867,0.48580615,4417.1,4417.0,5.82498007]
[1755292228753,0.48580615,4417.1,4417.0,3.561]
[1755292228954,0.48580615,4417.1,4417.0,5.82498007]
[1755292230724,0.48580615,4417.1,4417.0,7.62788495]
[1755292230925,0.002,4417.6,4417.5,2.26372382]
[1755292231126,0.48917618,4417.6,4417.5,6.26772382]
[1755292232162,0.002,4417.6,4417.5,6.81772382]
[1755292232540,0.002,4417.6,4417.5,6.93052382]
[1755292232751,0.002,4417.6,4417.5,8.45721171]
[1755292238547,0.002,4417.6,4417.5,0.720058]
[1755292238748,0.002,4417.6,4415.6,0.2993]
[1755292238749,3.50451022,4417.6,4417.2,3.558]
[1755292238955,2.9024,4417.5,4417.3,3.558]
[1755292239266,0.48683695,4417.4,4417.2,2.26383716]
[1755292239468,0.1148,4417.6,4417.3,5.82182167]
[1755292239672,2.9024,4417.4,4416.7,2.2641089]
[1755292239846,0.1136,4416.9,4416.8,3.558]
[1755292240041,3.016,4416.9,4416.8,5.82208259]
[1755292240473,3.5028455,4416.9,4416.8,5.82208259]
[1755292240670,3.5028455,4416.9,4416.8,3.558]
[1755292240968,3.5028455,4416.9,4416.7,3.558]
[1755292241170,3.3892455,4416.8,4416.7,3.558]
[1755292241670,3.5028455,4416.8,4416.7,3.558]
[1755292242172,3.5028455,4416.8,4416.7,5.82213385]
[1755292242563,0.1136,4416.9,4416.8,2.26408259]
[1755292242761,0.60036198,4416.9,4416.8,2.26408259]
[1755292243778,3.07046198,4416.9,4416.7,3.558]
[1755292244068,2.5837,4416.9,4416.8,2.26408259]
[1755292244279,3.07048431,4416.9,4416.8,2.26408259]
[1755292244638,3.50278431,4416.9,4416.7,5.82212668]
[1755292244989,3.38918431,4416.8,4416.7,2.26412668]
[1755292245147,2.95688431,4416.8,4416.7,5.82212668]
[1755292245539,2.95688431,4416.8,4416.7,3.558]
[1755292245970,2.95688431,4416.8,4416.3,3.558]
[1755292245971,3.38918431,4416.8,4416.3,3.558]
[1755292246273,3.38918431,4416.7,4416.3,3.558]
[1755292246470,0.48678431,4416.6,4416.5,2.26423638]
[1755292246671,0.1136,4416.5,4416.3,5.82233463]
[1755292246975,2.5837,4416.5,4416.4,2.26428765]
[1755292247385,3.07062661,4416.5,4416.4,2.26428765]
[1755292247571,2.5837,4416.5,4416.4,2.26428765]
[1755292247771,3.07062661,4416.5,4416.4,2.26428765]
[1755292247980,2.5837,4416.5,4416.4,2.26428765]
[1755292248165,3.07062661,4416.5,4416.4,2.26428765]
[1755292248548,3.0,4416.4,4416.1,0.021]
[1755292248752,3.6087218,4416.2,4416.1,0.021]
[1755292248967,0.60052661,4416.2,4416.1,0.021]
[1755292249174,6.50292661,4416.2,4416.1,0.021]
[1755292251686,7.11139184,4416.2,4416.1,0.021]
[1755292252896,4.11139184,4416.2,4416.1,0.021]
[1755292254817,3.50292661,4416.2,4416.1,0.021]
[1755292256024,0.60052661,4416.2,4416.1,0.021]
[1755292257422,33.38932661,4416.2,4416.1,0.021]
[1755292257722,36.38932661,4416.2,4416.1,0.021]
[1755292257926,35.95702661,4416.2,4416.1,0.021]
[1755292258128,31.09438022,4416.2,4416.1,0.021]
[1755292258426,0.48692661,4416.2,4416.1,0.021]
[1755292258834,2.4701,4416.2,4416.1,0.021]
[1755292259024,2.95702661,4416.2,4416.1,0.021]
[1755292259214,2.4701,4416.2,4416.1,0.021]
[1755292259413,2.95702661,4416.2,4416.1,0.021]
[1755292259614,2.4701,4416.2,4416.1,0.021]
[1755292259813,2.95702661,4416.2,4416.1,0.021]
[1755292260013,2.4701,4416.2,4416.1,0.021]
[1755292260209,2.95702661,4416.2,4416.1,0.021]
[1755292260413,2.4701,4416.2,4416.1,0.021]
[1755292260613,2.95702661,4416.2,4416.1,0.021]
[1755292260794,2.9024,4416.2,4415.7,0.001]
[1755292261125,30.91922661,4416.1,4415.7,0.001]
[1755292261296,30.48692661,4416.0,4415.7,0.001]
[1755292261497,30.48692661,4415.9,4415.7,0.001]
[1755292261824,30.48692661,4415.8,4415.7,0.001]
[1755292262011,0.48692661,4415.8,4415.7,0.001]
[1755292262340,2.4701,4415.8,4415.7,0.001]
[1755292263409,0.48605899,4416.0,4415.7,0.001]
[1755292263609,0.60757374,4416.2,4415.7,2.26559718]
[1755292263610,30.0,4415.9,4415.7,2.26559718]
[1755292263810,0.48605899,4415.8,4415.7,2.2656466]
[1755292264011,30.48605899,4416.0,4415.7,2.2656466]
[1755292264328,30.48605899,4415.9,4415.7,2.2656466]
[1755292264536,30.48605899,4415.8,4415.7,2.2656466]
[1755292264700,0.48605899,4415.8,4415.7,2.2656466]
[1755292265025,0.48605899,4416.2,4415.7,0.4307]
[1755292265215,30.48605899,4416.1,4415.9,2.26451185]
[1755292265541,30.48605899,4416.0,4415.8,2.26459402]
[1755292265759,0.48605899,4415.9,4415.8,2.26459402]
[1755292265934,0.48605899,4416.1,4415.8,2.26459402]
[1755292266250,33.48605899,4416.0,4415.9,2.26454403]
[1755292266466,3.48605899,4416.0,4415.9,2.26454403]
[1755292266740,3.48605899,4416.0,4415.7,2.26560119]
[1755292267040,0.48605899,4415.9,4415.8,2.26459531]
[1755292267538,0.59965899,4415.9,4415.8,2.26459531]
[1755292269204,0.59965899,4415.9,4415.7,2.26563527]
[1755292269404,0.48605899,4415.8,4415.7,2.26563527]
[1755292270098,3.1136,4415.9,4415.7,0.001]
[1755292270333,5.80474717,4415.8,4415.7,0.001]
[1755292271750,3.48754717,4415.8,4415.7,2.2656466]
[1755292272302,3.48754717,4415.8,4415.7,0.001]
[1755292274333,5.80474717,4415.8,4415.7,0.001]
[1755292274531,6.61550963,4415.8,4415.7,0.001]
[1755292274730,5.80474717,4415.8,4415.7,0.001]
[1755292274951,7.29380323,4415.8,4415.7,0.001]
[1755292275360,6.82730323,4415.8,4415.7,0.001]
[1755292275507,7.29380323,4415.8,4415.7,0.001]
[1755292276143,6.82730323,4415.8,4415.7,0.001]
[1755292276650,6.01654077,4415.8,4415.7,0.001]
[1755292278106,37.69918447,4415.8,4415.7,0.001]
[1755292278442,36.8224845,4415.8,4415.7,0.001]
[1755292278645,3.0,4415.7,4415.6,0.001]
[1755292278843,34.0387845,4415.7,4415.6,0.001]
[1755292279045,6.8224845,4415.7,4415.6,0.001]
[1755292279408,8.0444809,4415.7,4415.6,0.001]
[1755292280620,38.1814845,4415.7,4415.6,0.001]
[1755292281020,36.8224845,4415.7,4415.6,0.001]
[1755292281643,36.99020877,4415.7,4415.6,0.001]
[1755292284262,38.34920877,4415.7,4415.6,0.001]
[1755292284464,38.34920877,4415.7,4415.4,0.001]
[1755292284763,3.1136,4415.5,4415.4,0.001]
[1755292285061,34.1523845,4415.5,4415.4,0.001]
[1755292285419,36.9360845,4415.5,4415.4,0.001]
[1755292288358,38.2950845,4415.5,4414.9,0.001]
[1755292288558,1.4726,4415.0,4414.9,0.001]
[1755292288747,32.5113845,4415.0,4414.9,0.001]
[1755292289122,35.2950845,4415.0,4414.9,0.001]
[1755292289327,35.29505085,4415.0,4414.9,0.001]
[1755292289838,40.56005651,4415.0,4414.9,0.001]
[1755292290036,1.359,4414.5,4414.1,0.02]
[1755292290266,5.69147568,4414.2,4414.1,0.02]
[1755292290445,36.51765117,4414.2,4414.1,0.02]
[1755292290640,39.51279391,4414.2,4414.1,0.02]
[1755292291374,39.30135117,4414.2,4414.1,0.02]
[1755292291928,35.15865117,4414.2,4414.1,0.02]
[1755292292160,33.81290712,4414.2,4414.1,0.02]
[1755292292327,36.13010712,4414.2,4414.1,0.02]
[1755292292669,37.95560712,4414.2,4414.1,0.02]
[1755292292826,40.55877838,4414.2,4414.1,0.02]
[1755292293026,40.88181625,4414.2,4414.1,0.02]
[1755292293227,38.1499001,4414.2,4414.1,0.02]
[1755292293455,38.29336223,4414.2,4414.1,0.02]
[1755292293756,1.359,4414.0,4413.2,0.448]
[1755292293921,0.60732313,4413.4,4413.2,0.47065929]
[1755292294131,0.60114717,4413.3,4413.1,0.02]
[1755292294420,0.60114717,4413.3,4413.1,0.0426598]
[1755292294421,0.48754717,4413.2,4413.1,0.0426598]
[1755292294668,0.48754717,4413.2,4413.1,0.02]
[1755292294871,0.48754717,4413.2,4413.1,2.28598082]
[1755292295079,0.1136,4413.3,4413.2,2.26592948]
[1755292295428,0.48754717,4414.0,4413.6,2.26567937]
[1755292295628,0.48754717,4413.9,4413.7,2.26566708]
[1755292295941,0.48754717,4414.1,4413.8,0.448]
[1755292296142,0.48754717,4414.0,4413.8,0.448]
[1755292296342,0.60114717,4413.9,4413.8,0.448]
[1755292296669,0.1136,4413.9,4413.8,0.448]
[1755292297174,0.1136,4413.9,4413.8,2.71362145]
[1755292298362,0.1136,4413.9,4413.8,0.448]
[1755292299230,0.1136,4413.9,4413.8,2.71362145]
[1755292300568,1.0948703,4414.4,4414.2,2.26539728]
[1755292300728,3.0,4414.2,4414.0,2.26547323]
[1755292300933,0.48754717,4414.2,4414.0,2.26547323]
[1755292301128,0.48754717,4414.4,4414.0,2.26547323]
[1755292301330,30.48754717,4414.3,4414.1,0.4671]
[1755292301567,33.60114717,4414.2,4413.3,0.720923]
[1755292301868,30.48754717,4414.1,4413.1,0.02]
[1755292302068,0.48754717,4414.0,4413.4,2.26577548]
[1755292302362,0.1136,4413.5,4413.4,2.26577548]
[1755292302568,0.1136,4413.5,4413.4,0.4671]
[1755292302775,0.1136,4413.5,4413.1,0.02]
[1755292302984,0.1136,4413.2,4413.1,0.02]
[1755292304195,0.1136,4413.2,4413.1,2.28598082]
[1755292304699,0.1136,4413.2,4413.1,2.75308082]
[1755292305561,0.48754717,4413.7,4413.5,2.26574042]
[1755292305796,30.48754717,4413.6,4413.5,2.26574042]
[1755292305975,0.60114717,4413.6,4413.1,0.02]
[1755292306302,0.60114717,4413.6,4413.5,2.26577546]
[1755292306303,0.1136,4413.6,4413.5,2.26577546]
[1755292306485,0.1136,4413.6,4413.5,2.73287546]
[1755292306787,0.1136,4413.6,4413.5,6.84053588]
[1755292306948,0.1136,4413.6,4413.5,6.81787813]
[1755292307147,0.48754717,4414.7,4413.6,0.55]
[1755292307390,0.48754717,4414.8,4414.7,2.26515958]
[1755292307596,0.002,4414.9,4414.8,2.26510827]
[1755292307750,0.1156,4414.9,4414.8,2.26510827]
[1755292307955,0.1156,4414.9,4414.8,2.73220827]
[1755292308386,0.1156,4414.9,4414.8,3.23194505]
[1755292308387,0.002,4414.9,4414.8,3.23194505]
[1755292308758,0.002,4414.9,4414.8,6.78194505]
[1755292309465,0.002,4414.9,4414.5,0.5807]
[1755292309654,0.1136,4414.8,4414.6,3.55]
[1755292309865,0.1136,4414.8,4414.7,2.26515958]
[1755292310066,0.1136,4414.8,4414.7,2.73225958]
[1755292311070,0.002,4414.9,4414.8,2.26510827]
[1755292311275,0.002,4414.9,4414.8,2.73220827]
[1755292311782,0.002,4414.9,4414.8,3.28220827]
[1755292311958,0.002,4414.9,4414.8,3.39580827]
[1755292312160,0.002,4414.9,4414.8,4.66303334]
[1755292313509,1e-08,4414.9,4414.8,5.00433334]
[1755292313687,0.002,4415.4,4415.3,2.26485176]
[1755292313867,0.002,4415.4,4415.3,6.47745176]
[1755292314057,0.002,4415.4,4415.3,7.28585176]
[1755292314370,0.002,4415.4,4415.3,8.29176854]
[1755292314575,0.002,4415.4,4415.3,7.95046854]
[1755292315514,0.002,4415.4,4415.3,8.29176854]
[1755292316010,0.002,4415.4,4415.3,7.95046854]
[1755292316175,0.002,4415.4,4415.3,8.29176854]
[1755292316376,1e-08,4415.4,4415.3,8.29176854]
[1755292316571,0.002,4416.3,4416.2,2.81439019]
[1755292316777,0.022,4416.4,4416.3,2.26433892]
[1755292316972,0.022,4416.4,4416.3,3.07273892]
[1755292317672,1e-08,4416.4,4416.3,3.62273892]
[1755292318073,1e-08,4416.4,4416.3,6.82943892]
[1755292320411,1e-08,4416.8,4416.7,2.81413385]
[1755292320576,1e-08,4417.3,4417.2,2.81387756]
[1755292320778,1e-08,4417.3,4417.2,6.35987756]
[1755292321214,1e-08,4417.3,4417.2,6.82697756]
[1755292321418,1e-08,4417.3,4417.2,6.91770456]
[1755292321645,1e-08,4417.3,4417.2,7.83587046]
[1755292324907,1e-08,4417.3,4417.2,7.83487046]
[1755292325920,1e-08,4417.3,4417.2,0.090727]
[1755292325921,2.91440001,4417.3,4417.2,0.090727]
[1755292326221,2.91440001,4417.3,4417.1,3.545]
[1755292326377,2.3337,4417.2,4417.1,3.545]
[1755292326708,1e-08,4417.3,4417.1,5.80892882]
[1755292326910,2.3337,4417.2,4417.1,3.545]
[1755292327615,2.7621,4417.2,4417.1,3.545]
[1755292330195,2.7621,4417.2,4416.8,0.1136]
[1755292330398,0.4284,4417.1,4416.8,3.6576]
[1755292330815,1e-08,4417.3,4416.8,3.6576]
[1755292331016,2.3337,4417.0,4416.9,2.26402931]
[1755292331926,1e-08,4417.3,4416.9,0.55]
[1755292332085,1e-08,4417.3,4417.2,2.26387756]
[1755292332286,1e-08,4417.3,4417.2,5.80687756]
[1755292333021,1e-08,4417.3,4417.2,3.543]
[1755292333205,2.76210001,4417.3,4417.2,3.543]
[1755292333591,1e-08,4417.3,4417.2,6.24287756]
[1755292333785,1e-08,4417.3,4417.2,7.10484288]
[1755292333997,1e-08,4417.3,4417.2,7.65484288]
[1755292334202,1e-08,4417.3,4417.2,7.21884288]
[1755292334532,0.48438956,4417.3,4417.2,7.21884288]
[1755292335292,0.48438956,4417.3,4417.2,6.35687756]
[1755292336121,3.24648956,4417.3,4417.2,3.543]
[1755292336894,3.85450564,4417.3,4417.2,5.80687756]
[1755292337228,3.85450564,4417.3,4417.1,0.1128]
[1755292337527,3.42415735,4417.2,4417.1,2.37672882]
[1755292338305,0.48438955,4417.2,4417.1,2.37672882]
[1755292338889,0.48438955,4417.2,4417.1,2.37772882]
[1755292340318,3.62785373,4417.2,4417.1,0.1138]
[1755292340636,3.24648955,4417.2,4417.1,0.001]
[1755292340995,4.05597915,4417.2,4417.1,2.26492882]
[1755292341327,3.24648955,4417.2,4417.1,2.26492882]
[1755292341541,3.24648955,4417.2,4417.1,0.001]
[1755292342420,4.46113582,4417.2,4417.1,0.001]
[1755292342738,4.03273582,4417.2,4417.1,2.26492882]
[1755292343234,2.81808955,4417.2,4417.1,2.26492882]
[1755292343614,1.70107707,4417.2,4417.1,2.26492882]
[1755292344215,4.03477707,4417.2,4417.1,0.001]
[1755292344402,2.81808955,4417.2,4417.1,0.001]
[1755292344832,3.24648955,4417.2,4417.1,0.001]
[1755292345312,3.45787045,4417.2,4416.9,0.55]
[1755292345512,4.03574827,4417.1,4416.9,0.55]
[1755292345833,1.70204827,4417.0,4416.9,2.81403133]
[1755292346404,0.48438955,4417.0,4416.9,2.81403133]
[1755292346733,2.81808955,4417.0,4416.9,2.81403133]
[1755292349405,0.48438955,4417.0,4416.9,2.81403133]
[1755292349632,0.48438955,4417.0,4416.9,3.25003133]
[1755292350053,0.48438955,4417.0,4416.9,4.18974809]
[1755292350339,0.48438955,4417.0,4416.9,4.62200778]
[1755292350652,0.60904799,4417.1,4416.9,4.62200778]
[1755292350809,0.60904799,4417.2,4417.1,2.81392882]
[1755292351148,1e-08,4417.3,4417.2,2.81387756]
[1755292351306,1e-08,4417.3,4417.2,5.11097947]
[1755292351502,1e-08,4417.3,4417.2,5.22377947]
[1755292351715,1e-08,4417.3,4417.2,5.56507947]
[1755292352014,1e-08,4417.3,4417.2,5.22377947]
[1755292353844,1e-08,4417.3,4417.2,2.92667756]
[1755292354043,1e-08,4417.3,4417.2,3.36267756]
[1755292354339,1e-08,4417.4,4417.3,2.81382631]
[1755292354543,0.002,4417.8,4417.7,2.81362134]
[1755292354857,0.002,4417.8,4417.7,6.63298347]
[1755292355061,0.002,4417.8,4417.7,7.06898347]
[1755292355333,0.002,4418.0,4417.9,2.26351886]
[1755292355501,0.002,4418.0,4417.9,6.35151886]
[1755292355906,0.002,4418.0,4417.9,6.78751886]
[1755292356144,0.002,4418.0,4417.9,7.73204909]
[1755292357538,0.002,4418.0,4417.9,7.29604909]
[1755292357847,2.8714,4418.0,4417.9,3.538]
[1755292358148,2.8714,4418.0,4417.9,4.088]
[1755292358352,2.8714,4418.0,4417.9,6.35151886]
[1755292358655,2.8714,4418.0,4417.9,3.538]
[1755292358805,3.48044799,4418.0,4417.9,5.80151886]
[1755292359001,3.48044799,4418.0,4417.9,3.538]
[1755292359454,2.8714,4418.0,4417.9,3.538]
[1755292359658,3.48044799,4418.0,4417.9,3.538]
[1755292360344,2.4215,4418.0,4417.9,6.35151886]
[1755292360543,0.002,4418.0,4417.9,6.35151886]
[1755292361527,0.002,4418.0,4417.9,7.65801212]
[1755292362627,0.002,4418.0,4417.9,7.99931212]
[1755292363030,0.002,4418.2,4417.9,7.99931212]
[1755292363031,0.002,4418.5,4418.2,0.55]
[1755292363226,0.002,4418.7,4418.4,0.55]
[1755292363433,0.002,4418.7,4418.6,0.55]
[1755292363631,0.002,4418.7,4418.6,1.27596436]
[1755292363819,0.002,4418.7,4418.6,3.97282463]
[1755292364346,0.002,4419.5,4418.8,2.81305784]
[1755292364551,0.002,4419.5,4418.8,6.34905784]
[1755292364863,0.002,4419.5,4418.8,8.13319211]
[1755292368222,2.4195,4419.2,4418.8,7.69949211]
[1755292368445,2.4215,4418.9,4418.8,6.46185784]
[1755292368864,2.4215,4418.9,4418.8,5.91185784]
[1755292370166,2.4215,4418.9,4418.8,6.46185784]
[1755292371560,0.002,4418.9,4418.8,6.46185784]
[1755292372682,0.002,4418.9,4418.8,6.89555784]
[1755292372994,0.002,4418.9,4418.8,7.81142453]
[1755292374535,0.002,4418.9,4418.8,7.37472453]
[1755292375040,2.4215,4418.9,4418.8,7.37472453]
[1755292375371,2.4215,4418.9,4418.8,2.37585784]
[1755292375535,2.8714,4418.9,4418.8,3.6458]
[1755292375734,2.8714,4418.9,4418.6,0.001]
[1755292375735,2.8714,4418.9,4418.6,3.534]
[1755292376090,0.4499,4418.8,4418.6,0.001]
[1755292376235,0.1128,4418.7,4418.6,0.001]
[1755292376441,2.9822,4418.7,4418.6,0.001]
[1755292377490,2.8694,4418.7,4418.6,0.001]
[1755292377844,2.9822,4418.7,4418.6,0.001]
[1755292379469,2.4195,4418.7,4418.6,6.34616027]
[1755292379654,0.002,4418.9,4418.8,2.26305784]
[1755292379868,0.002,4418.9,4418.8,3.532]
[1755292380066,2.4215,4418.9,4418.8,3.532]
[1755292380367,2.4215,4418.9,4417.6,2.26364725]
[1755292380368,32.8714,4418.9,4417.6,2.26364725]
[1755292380569,0.1128,4418.4,4417.8,0.1128]
[1755292380767,0.1128,4418.4,4416.7,0.4337]
[1755292380768,2.8694,4418.3,4417.9,3.532]
[1755292380971,0.4499,4418.2,4417.9,3.532]
[1755292381173,0.4499,4418.2,4416.8,2.26403519]
[1755292381174,2.4195,4418.1,4417.7,3.532]
[1755292381373,0.5627,4418.0,4417.7,3.532]
[1755292381782,0.1128,4418.0,4417.7,3.532]
[1755292381982,2.8694,4417.9,4417.7,3.532]
[1755292382285,0.4499,4417.9,4417.7,3.532]
[1755292382475,2.4195,4417.8,4417.7,5.79562134]
[1755292383276,0.4499,4418.2,4417.8,0.55]
[1755292383551,0.1128,4418.4,4417.8,0.55]
[1755292383779,2.4195,4418.3,4417.8,0.55]
[1755292383974,0.1128,4418.4,4418.0,0.55]
[1755292384286,2.4195,4418.2,4418.1,3.532]
[1755292384596,2.4195,4418.2,4417.7,2.37638011]
[1755292384597,2.8694,4418.2,4417.7,0.1128]
[1755292384897,2.4195,4418.2,4417.8,4.081]
[1755292385063,2.4195,4418.1,4417.9,2.81351886]
[1755292385253,3.1128,4418.5,4417.9,2.92631886]
[1755292385589,2.4195,4418.4,4418.0,2.26346576]
[1755292385881,2.4195,4418.4,4418.1,3.531]
[1755292386061,0.4499,4418.3,4418.1,3.531]
[1755292386575,0.1128,4418.5,4418.1,3.531]
[1755292386754,2.8448,4418.2,4418.1,3.531]
[1755292387587,5.8448,4418.2,4418.1,3.531]
[1755292389190,2.8448,4418.2,4417.8,4.081]
[1755292389351,2.8448,4418.1,4417.8,4.081]
[1755292389556,0.4545,4418.1,4417.8,4.081]
[1755292389751,2.3903,4418.0,4417.8,4.081]
[1755292389992,2.8448,4417.9,4417.7,3.531]
[1755292390301,2.8448,4417.8,4417.7,3.531]
[1755292390503,2.8448,4417.8,4417.4,0.1128]
[1755292390796,2.8448,4417.7,4417.4,0.1128]
[1755292390993,0.1128,4418.1,4417.4,0.1128]
[1755292391283,2.8448,4417.6,4417.2,2.81387655]
[1755292391489,2.3903,4417.5,4417.2,0.55]
[1755292391864,0.4545,4417.5,4417.2,0.55]
[1755292392052,2.3903,4417.4,4417.2,0.55]
[1755292392257,2.3903,4417.3,4417.0,3.531]
[1755292392488,2.3903,4417.2,4417.0,3.531]
[1755292392695,0.4545,4417.3,4417.0,3.531]
[1755292392895,2.3903,4417.1,4417.0,3.531]
[1755292393099,2.3903,4417.1,4416.6,0.001]
[1755292393100,2.8448,4417.1,4416.6,0.001]
[1755292393282,0.1128,4417.1,4416.6,0.001]
[1755292393459,2.8448,4417.0,4416.6,0.001]
[1755292393822,0.1128,4417.1,4416.6,0.9994]
[1755292393973,0.1128,4417.3,4417.1,2.26392767]
[1755292394334,0.1128,4417.6,4417.1,2.71232414]
[1755292394613,3.0,4417.5,4417.1,0.4484]
[1755292394822,0.1128,4417.6,4417.1,0.4484]
[1755292394959,0.1128,4417.6,4417.0,0.55]
[1755292395159,2.3903,4417.5,4417.0,0.55]
[1755292395359,2.3903,4417.5,4417.1,2.26388197]
[1755292395587,2.3903,4417.5,4417.2,2.26384805]
[1755292396691,2.3903,4417.5,4417.3,2.26382432]
[1755292397001,0.1128,4417.6,4417.0,0.9984]
[1755292397306,0.1128,4417.6,4417.3,2.26379968]
[1755292397499,2.3903,4418.0,4417.5,0.6628]
[1755292397699,5.3903,4418.0,4417.5,4.1928]
[1755292398004,5.3903,4418.0,4417.5,4.6412]
[1755292398500,2.3903,4417.9,4417.5,4.1928]